fUST/lending_fUST_20240125
["ID","MTS","AMOUNT","RATE_DAILY","PERIOD"]
[312651574,1706134239625,-500.0,0.00039799,31]
[312651575,1706134239634,-500.0,0.00039799,31]
[312651576,1706134239643,-500.0,0.00039799,31]
[312651577,1706134239653,-40589.71118901,0.000398,10]
[312651578,1706134239663,-151.0,0.000398,2]
[312651579,1706134239673,-151.0,0.000398,2]
[312651580,1706134239682,-151.0,0.000398,2]
[312651581,1706134239692,-769.844791,0.000398,2]
[312651582,1706134239701,-769.844791,0.000398,2]
[312651583,1706134239710,-151.0,0.000398,2]
[312651584,1706134239719,-151.0,0.000398,2]
[312651585,1706134239727,-151.0,0.000398,2]
[312651586,1706134239736,-151.0,0.000398,2]
[312651587,1706134239745,-151.0,0.000398,2]
[312651588,1706134239755,-834.467781,0.000398,2]
[312651589,1706134239764,-834.467781,0.000398,2]
[312651590,1706134239773,-10000.0,0.000398,2]
[312651591,1706134239783,-10000.0,0.000398,2]
[312651592,1706134239792,-10000.0,0.000398,2]
[312651593,1706134239801,-500.0,0.000399,7]
[312651594,1706134239811,-24748.67605988,0.000399,2]
[312651595,1706134239821,-151.0,0.000399,2]
[312651596,1706134239831,-151.0,0.000399,2]
[312651597,1706134239840,-151.0,0.000399,2]
[312651598,1706134239849,-151.0,0.000399,2]
[312651599,1706134239859,-834.467781,0.000399,2]
[312651600,1706134239869,-834.467781,0.000399,2]
[312651601,1706134239877,-3900.61857439,0.000399,2]
[312651602,1706134239890,-1073.07024417,0.000399,2]
[312651645,1706134241642,-1243.64942372,0.0002999,3]
[312651835,1706134243709,-577.36057628,0.0002999,3]
[312651836,1706134243718,-5026.31118144,0.000399,2]
[312651837,1706134243728,-3808.85657341,0.000399,2]
[312652022,1706134246874,-154.90705577,0.00026998,4]
[312652023,1706134246884,-6191.14342659,0.000399,2]
[312652024,1706134246893,-10000.0,0.000399,2]
[312652025,1706134246902,-151.0,0.00039919,2]
[312652026,1706134246912,-151.0,0.00039919,2]
[312652027,1706134246922,-218.065054,0.00039919,2]
[312652028,1706134246931,-769.844791,0.00039919,2]
[312652029,1706134246940,-769.844791,0.00039919,2]
[312652030,1706134246950,-151.0,0.00039919,2]
[312652031,1706134246960,-151.0,0.00039919,2]
[312652032,1706134246969,-151.0,0.00039919,2]
[312652033,1706134246979,-151.0,0.00039919,2]
[312652034,1706134246988,-834.467781,0.00039919,2]
[312652035,1706134246998,-834.467781,0.00039919,2]
[312652036,1706134247007,-10000.0,0.00039919,2]
[312652037,1706134247017,-10000.0,0.00039919,2]
[312652038,1706134247026,-10000.0,0.00039919,2]
[312652039,1706134247035,-31196.72739789,0.00039919,10]
[312652040,1706134247044,-500.0,0.00039989,5]
[312652041,1706134247054,-4040.09199812,0.0003999,4]
[312652042,1706134247063,-1280.40356402,0.0004,4]
[312652043,1706134247072,-154.86062544,0.0004,4]
[312652044,1706134247082,-600.0,0.0004,30]
[312652045,1706134247091,-152.314971,0.0004,11]
[312652046,1706134247100,-245.347811,0.0004,15]
[312652047,1706134247110,-174.71737,0.00040313,2]
[312652048,1706134247119,-151.0,0.0004045,21]
[312652049,1706134247132,-834.467781,0.0004045,2]
[312652050,1706134247141,-834.467781,0.0004045,2]
[312652051,1706134247150,-10000.0,0.0004045,2]
[312652052,1706134247159,-10000.0,0.0004045,2]
[312652053,1706134247168,-5684.482472,0.0004045,2]
[312652054,1706134247178,-153.90070132,0.000407,120]
[312652055,1706134247187,-151.0,0.000407,2]
[312652056,1706134247196,-200.0,0.000408,4]
[312652057,1706134247207,-151.0,0.00040855,2]
[312652058,1706134247218,-251.4321,0.00040855,7]
[312652059,1706134247227,-285.733855,0.00040924,2]
[312652060,1706134247237,-160.598299,0.00040924,2]
[312652061,1706134247246,-214.023403,0.00040924,2]
[312652062,1706134247256,-285.733854,0.00040924,2]
[312652063,1706134247265,-151.0,0.00040981,21]
[312652064,1706134247275,-2807.0,0.00041,10]
[312652065,1706134247284,-974.820739,0.00041,7]
[312652066,1706134247294,-600.0,0.00041014,30]
[312652067,1706134247303,-500.0,0.00041095,2]
[312652068,1706134247313,-250.0,0.00041095,7]
[312652069,1706134247322,-174.71737,0.00041096,2]
[312652070,1706134247332,-158.273752,0.00041096,2]
[312652072,1706134247342,-196.196497,0.00041096,2]
[312652074,1706134247352,-184.2473272,0.00041271,30]
[312652076,1706134247361,-151.0,0.00041513,21]
[312652077,1706134247371,-155.54233736,0.00041534,30]
[312652078,1706134247380,-160.598299,0.00041606,30]
[312652079,1706134247389,-156.59077762,0.0004162,30]
[312652080,1706134247398,-150.96124494,0.00041687,30]
[312652081,1706134247407,-590.92,0.000418,30]
[312652082,1706134247417,-184.2473272,0.00041845,30]
[312652083,1706134247426,-1450.0,0.00041948,37]
[312652084,1706134247435,-151.0,0.00042045,21]
[312652085,1706134247445,-20055.10798256,0.00042186,2]
[312652086,1706134247454,-160.598299,0.00042288,30]
[312652087,1706134247463,-184.2473272,0.00042313,30]
[312652088,1706134247472,-155.54233736,0.00042343,30]
[312652089,1706134247482,-500.0,0.00042465,7]
[312652090,1706134247491,-151.45185766,0.00042482,30]
[312652091,1706134247501,-151.0,0.00042576,21]
[312652092,1706134247511,-184.2473272,0.00042587,30]
[312652093,1706134247520,-200.0,0.000426,14]
[312652094,1706134247529,-1000.0,0.0004264,7]
[312652095,1706134247538,-1000.0,0.00042726,7]
[312652096,1706134247548,-1000.0,0.00042728,7]
[312652097,1706134247557,-769.844791,0.0004279,7]
[312652098,1706134247567,-769.844791,0.0004279,7]
[312652099,1706134247576,-151.0,0.0004279,7]
[312652100,1706134247587,-151.0,0.0004279,7]
[312652101,1706134247596,-151.0,0.0004279,7]
[312652102,1706134247605,-151.0,0.0004279,7]
[312652103,1706134247615,-834.467781,0.0004279,7]
[312652104,1706134247624,-834.467781,0.0004279,7]
[312652105,1706134247633,-10000.0,0.0004279,7]
[312652106,1706134247643,-10000.0,0.0004279,7]
[312652107,1706134247653,-1000.0,0.00042808,7]
[312652108,1706134247662,-1125.18237575,0.00042816,7]
[312652109,1706134247671,-1000.0,0.00042824,7]
[312652110,1706134247680,-1000.0,0.00042849,7]
[312652111,1706134247690,-1000.0,0.00042875,7]
[312652112,1706134247700,-1000.0,0.00042876,7]
[312652113,1706134247709,-1000.0,0.00042893,7]
[312652114,1706134247718,-151.0,0.00042899,7]
[312652115,1706134247727,-151.0,0.00042899,7]
[312652116,1706134247736,-157.83101163,0.00042899,4]
[312652117,1706134247746,-3969.08835529,0.00042899,4]
[312652118,1706134247755,-470.54194176,0.00042899,2]
[312652119,1706134247765,-150.364464,0.000429,2]
[312652120,1706134247774,-191.044128,0.000429,18]
[312652121,1706134247783,-160.598299,0.0004297,30]
[312652122,1706134247792,-214.023403,0.0004297,30]
[312652123,1706134247802,-309.32455563,0.00042992,4]
[312652124,1706134247811,-315.34833542,0.00042993,4]
[312652125,1706134247821,-463.34061081,0.00042993,2]
[312652126,1706134247830,-80281.13515762,0.00042995,4]
[312652127,1706134247839,-151.0,0.00042995,7]
[312652128,1706134247849,-241.615986,0.00042995,7]
[312652129,1706134247858,-769.844791,0.00042995,7]
[312652130,1706134247868,-769.844791,0.00042995,7]
[312652131,1706134247877,-151.0,0.00042995,7]
[312652132,1706134247886,-296.0,0.00042995,7]
[312652133,1706134247895,-151.0,0.00042995,7]
[312652134,1706134247905,-283.142045,0.00042995,7]
[312652135,1706134247914,-834.467781,0.00042995,7]
[312652136,1706134247923,-834.467781,0.00042995,7]
[312652137,1706134247932,-10000.0,0.00042995,7]
[312652138,1706134247942,-10000.0,0.00042995,7]
[312652139,1706134247951,-151.0,0.00042996,7]
[312652140,1706134247960,-769.844791,0.00042996,7]
[312652141,1706134247969,-769.844791,0.00042996,7]
[312652142,1706134247978,-151.0,0.00042996,7]
[312652143,1706134247987,-834.467781,0.00042996,7]
[312652144,1706134247996,-834.467781,0.00042996,7]
[312652145,1706134248005,-10000.0,0.00042996,7]
[312652146,1706134248014,-10000.0,0.00042996,7]
[312652147,1706134248024,-21296.77874424,0.00042996,4]
[312652148,1706134248033,-749.28306982,0.00042996,2]
[312652149,1706134248042,-301.93072688,0.00042996,4]
[312652150,1706134248051,-678.6288756,0.00042996,4]
[312652151,1706134248061,-1320.80319943,0.00042997,4]
[312652152,1706134248070,-521.58899704,0.00042998,4]
[312652153,1706134248080,-6294.939743,0.00042998,4]
[312652154,1706134248156,-155.77243121,0.00042999,4]
[312652155,1706134248165,-11724.55601252,0.00042999,4]
[312652156,1706134248174,-2024.0,0.00043,30]
[312652157,1706134248183,-1000.0,0.00043,43]
[312652158,1706134248192,-97965.4338324,0.00043,14]
[312652159,1706134248202,-151.0,0.00043,7]
[312652160,1706134248212,-769.844791,0.00043,7]
[312652161,1706134248221,-769.844791,0.00043,7]
[312652162,1706134248231,-208.88,0.00043,4]
[312652163,1706134248240,-151.0,0.00043,7]
[312652164,1706134248249,-834.467781,0.00043,7]
[312652165,1706134248258,-834.467781,0.00043,7]
[312652166,1706134248267,-10000.0,0.00043,7]
[312652167,1706134248277,-10000.0,0.00043,7]
[312652168,1706134248286,-184.2473272,0.00043012,30]
[312652169,1706134248297,-1148.11,0.00043013,31]
[312652170,1706134248307,-200.0,0.000431,18]
[312652171,1706134248318,-151.0,0.00043108,21]
[312652172,1706134248328,-285.327477,0.00043143,30]
[312652173,1706134248337,-223.943,0.0004319,4]
[312652174,1706134248347,-223.944,0.0004319,4]
[312652175,1706134248356,-223.943,0.0004319,4]
[312652176,1706134248365,-223.943,0.0004319,4]
[312652177,1706134248374,-223.943,0.0004319,4]
[312652178,1706134248383,-1148.11,0.00043287,31]
[312652179,1706134248392,-184.2473272,0.00043381,30]
[312652180,1706134248401,-231.21398044,0.00043401,4]
[312652181,1706134248411,-202.89749106,0.00043404,2]
[312652182,1706134248420,-167.76656573,0.00043406,14]
[312652183,1706134248429,-156.2627805,0.00043406,15]
[312652184,1706134248438,-175.60835181,0.00043406,14]
[312652185,1706134248447,-527.34771188,0.00043406,15]
[312652186,1706134248457,-184.94562957,0.000435,30]
[312652187,1706134248466,-1148.11,0.00043561,31]
[312652188,1706134248476,-184.2473272,0.00043573,30]
[312652189,1706134248485,-285.327477,0.00043662,30]
[312652190,1706134248495,-590.0310034,0.00043667,5]
[312652191,1706134248504,-184.2473272,0.00043735,30]
[312652192,1706134248513,-184.2473272,0.00043742,30]
[312652193,1706134248523,-250.0,0.00043749,7]
[312652194,1706134248532,-250.0,0.00043749,14]
[312652195,1706134248541,-250.0,0.00043749,21]
[312652196,1706134248551,-250.0,0.00043749,28]
[312652197,1706134248560,-1148.11,0.00043835,31]
[312652198,1706134248569,-750.0,0.00043835,7]
[312652199,1706134248580,-156.51826697,0.00043946,4]
[312652200,1706134248589,-184.2473272,0.00043949,30]
[312652201,1706134248599,-184.2473272,0.00043969,30]
[312652202,1706134248608,-202.23574075,0.0004399,4]
[312652203,1706134248617,-50000.0,0.00044,15]
[312652204,1706134248626,-50000.0,0.00044,20]
[312652205,1706134248635,-537.52,0.00044,30]
[312652206,1706134248644,-45187.0,0.00044,2]
[312652207,1706134248654,-1000.0,0.00044,44]
[312652208,1706134248663,-150.0,0.00044,30]
[312652209,1706134248672,-151.0,0.00044,7]
[312652210,1706134248681,-151.0,0.00044,7]
[312652211,1706134248691,-151.0,0.00044,7]
[312652212,1706134248700,-151.0,0.00044,7]
[312652213,1706134248709,-769.844791,0.00044,7]
[312652214,1706134248718,-769.844791,0.00044,7]
[312652215,1706134248727,-769.844791,0.00044,7]
[312652216,1706134248736,-769.844791,0.00044,7]
[312652217,1706134248746,-769.844791,0.00044,7]
[312652218,1706134248754,-769.844791,0.00044,7]
[312652219,1706134248764,-769.844791,0.00044,7]
[312652220,1706134248773,-769.84478887,0.00044,7]
[312652221,1706134248782,-155.0,0.00044,2]
[312652222,1706134248791,-834.467781,0.00044,7]
[312652223,1706134248801,-834.467781,0.00044,7]
[312652224,1706134248810,-834.467781,0.00044,7]
[312652225,1706134248820,-834.467774,0.00044,7]
[312652226,1706134248829,-10000.0,0.00044,7]
[312652227,1706134248838,-10000.0,0.00044,7]
[312652228,1706134248847,-10000.0,0.00044,7]
[312652229,1706134248857,-10000.0,0.00044,7]
[312652230,1706134248866,-151.45185766,0.00044051,30]
[312652231,1706134248876,-853.00027206,0.00044081,2]
[312652232,1706134248885,-817.462,0.0004409,4]
[312652233,1706134248893,-817.462,0.0004409,4]
[312652234,1706134248903,-817.462,0.0004409,4]
[312652235,1706134248912,-817.462,0.0004409,4]
[312652236,1706134248921,-817.462,0.0004409,4]
[312652237,1706134248930,-1148.11,0.00044109,31]
[312652238,1706134248939,-174.6360479,0.00044193,30]
[312652239,1706134248948,-35142.89203714,0.00044245,5]
[312652240,1706134248957,-151.51,0.00044339,14]
[312652241,1706134248968,-164.51,0.00044339,14]
[312652242,1706134248977,-1148.11,0.00044383,31]
[312652243,1706134248986,-155.54233736,0.00044407,30]
[312652244,1706134248995,-150.0,0.00044437,30]
[312652245,1706134249004,-160.47462335,0.00044478,30]
[312652246,1706134249013,-185228.98370039,0.00044495,7]
[312652247,1706134249022,-102556.60049229,0.00044495,7]
[312652248,1706134249031,-643189.68265316,0.00044495,7]
[312652249,1706134249147,-463.36013766,0.00044495,7]
[312652350,1706135437823,-154.8915759,0.00024716,4]
[312652351,1706135437832,-1046.46984737,0.00024716,2]
[312652352,1706135437842,-244.18511034,0.00024717,2]
[312652353,1706135437852,-1418.54241401,0.0002474,2]
[312652354,1706135437863,-1334.63822335,0.0002474,2]
[312652355,1706135437874,-849.41711613,0.0002474,2]
[312652356,1706135437883,-498.54555384,0.00028299,5]
[312652357,1706135437893,-168.09052939,0.000283,2]
[312652358,1706135437903,-942.41422482,0.0003,2]
[312652359,1706135437912,-244.25363051,0.0003,4]
[312652360,1706135437921,-154.8915759,0.0003,4]
[312652361,1706135437930,-174.71737,0.00030137,2]
[312652362,1706135437939,-163.646846,0.00033937,2]
[312652363,1706135437948,-154.92253873,0.00035817,4]
[312652364,1706135437958,-290.46013341,0.00037804,4]
[312652365,1706135437967,-2141.04105397,0.000386,4]
[312652366,1706135437977,-2921.67206427,0.00038601,10]
[312652367,1706135437988,-3000.0,0.00039,7]
[312652368,1706135437997,-309.66775956,0.00039,4]
[312652369,1706135438006,-1517.51,0.00039786,3]
[312652370,1706135438016,-1264.59,0.00039786,3]
[312652371,1706135438025,-5204.15960347,0.00039796,4]
[312652372,1706135438037,-4080.14655688,0.00039796,4]
[312652373,1706135438048,-6185.39656338,0.00039796,4]
[312652382,1706135440768,-6446.70293108,0.00039796,4]
[312652383,1706135440780,-43203.72593051,0.00039796,4]
[312652384,1706135440824,-1429.55506106,0.00039796,4]
[312652385,1706135440835,-6807.15450346,0.00039796,4]
[312652386,1706135440847,-4219.27995585,0.00039796,4]
[312652387,1706135440860,-705.60656411,0.00039796,4]
[312652431,1706135442807,-1323.32308432,0.00039796,4]
[312652541,1706136631969,-154.86062544,0.00024596,2]
[312652543,1706136631979,-239.55581403,0.00024597,2]
[312652545,1706136631991,-448.58260059,0.00024597,2]
[312652547,1706136632002,-154.86062544,0.00024598,4]
[312652549,1706136632011,-879.06859223,0.00024598,2]
[312652597,1706136637958,-8130.36190201,0.00024597,2]
[312652598,1706136637967,-388.05445853,0.00024598,2]
[312652599,1706136637977,-272.6306295,0.00024599,2]
[312652600,1706136637987,-380.0,0.00024658,2]
[312652602,1706136637996,-154.87609912,0.00024738,2]
[312652603,1706136638005,-154.87609912,0.00024738,2]
[312652604,1706136638014,-685.07842528,0.00024739,2]
[312652605,1706136638023,-47169.88603615,0.0002474,2]
[312652606,1706136638032,-17650.96581085,0.0002474,2]
[312652607,1706136638042,-500.0,0.00027397,2]
[312652608,1706136638051,-231.74266713,0.000283,2]
[312652609,1706136638060,-2087.01,0.00029989,3]
[312652610,1706136638070,-211.59032414,0.00029998,2]
[312652611,1706136638079,-326.75620635,0.00029998,2]
[312652621,1706136638188,-213.33442515,0.00029998,2]
[312652623,1706136638198,-187.90145299,0.00029998,2]
[312652624,1706136638208,-2115.45750118,0.00029999,2]
[312652626,1706136638217,-139234.85869816,0.0003,4]
[312652628,1706136638226,-154.87609912,0.0003,4]
[312652630,1706136638235,-2196.43554395,0.0003,2]
[312652632,1706136638244,-244.25363051,0.0003,4]
[312652634,1706136638253,-165.933429,0.00030137,2]
[312652636,1706136638262,-158.273752,0.00030137,2]
[312652637,1706136638272,-165.933429,0.0003092,2]
[312652639,1706136638281,-165.933429,0.00031703,2]
[312652641,1706136638290,-154.86062544,0.00032,4]
[312652643,1706136638299,-165.933429,0.00032485,2]
[312652645,1706136638308,-165.933429,0.00033268,2]
[312652647,1706136638317,-165.933429,0.00034051,2]
[312652649,1706136638326,-177.0772953,0.00034247,2]
[312652651,1706136638335,-208.4755949,0.000343,2]
[312652652,1706136638344,-165.933429,0.00034834,2]
[312652654,1706136638354,-165.933429,0.00035616,2]
[312652655,1706136638363,-603.79775591,0.00035818,2]
[312652656,1706136638372,-154.87609912,0.00036,4]
[312652657,1706136638381,-165.933429,0.00036399,2]
[312652658,1706136638390,-165.933429,0.00037182,2]
[312652659,1706136638399,-5000.0,0.0003745,7]
[312652660,1706136638408,-150.0,0.00037788,2]
[312652661,1706136638417,-150.086,0.00037788,2]
[312652662,1706136638425,-12260.48652932,0.00037806,5]
[312652663,1706136638435,-290.18532393,0.00037808,4]
[312652664,1706136638444,-165.933429,0.00037965,2]
[312652665,1706136638452,-1000.0,0.00038637,10]
[312652666,1706136638461,-165.933429,0.00038747,2]
[312652667,1706136638470,-3000.0,0.00039,7]
[312652668,1706136638479,-165.933429,0.0003953,2]
[312652669,1706136638488,-188.29380735,0.00039716,2]
[312652670,1706136638497,-1274.54346696,0.00039784,2]
[312652671,1706136638506,-267.83589458,0.00039794,4]
[312652672,1706136638515,-4593.06068613,0.00039794,14]
[312652673,1706136638524,-237.74153663,0.00039794,4]
[312652674,1706136638533,-495.85668836,0.00039795,5]
[312652675,1706136638542,-744.19914574,0.00039795,4]
[312652676,1706136638552,-15109.76406738,0.00039795,4]
[312652677,1706136638561,-375.92766294,0.00039796,4]
[312652678,1706136638570,-687.02930473,0.00039796,4]
[312652679,1706136638579,-154.8915759,0.00039796,4]
[312652680,1706136638589,-261.5413111,0.00039796,7]
[312652681,1706136638598,-2801.27872008,0.00039796,4]
[312652682,1706136638607,-1026.77897877,0.00039796,2]
[312652683,1706136638616,-323.13003236,0.00039797,4]
[312652684,1706136638625,-850.30063575,0.00039797,4]
[312652685,1706136638634,-154.92253873,0.00039797,4]
[312652686,1706136638644,-1197.97622761,0.00039797,4]
[312652687,1706136638653,-3178.45633108,0.00039797,4]
[312652688,1706136638662,-678.6288756,0.00039797,4]
[312652689,1706136638672,-154.92253873,0.00039797,4]
[312652690,1706136638681,-1199.3109008,0.00039797,4]
[312652691,1706136638690,-154.95348919,0.00039797,4]
[312652692,1706136638699,-289.86304104,0.00039797,4]
[312652693,1706136638709,-2073.27680769,0.00039797,4]
[312652694,1706136638718,-2102.73698873,0.00039797,4]
[312652695,1706136638727,-333.08255178,0.00039797,4]
[312652696,1706136638736,-160.97125691,0.00039797,4]
[312652697,1706136638746,-238.14143998,0.00039797,4]
[312652698,1706136638755,-260.43027978,0.00039797,4]
[312652699,1706136638764,-342.68202695,0.00039797,4]
[312652700,1706136638773,-2000.0,0.00039797,4]
[312652701,1706136638782,-178.19682148,0.00039797,4]
[312652702,1706136638792,-252.69993573,0.00039797,31]
[312652703,1706136638802,-375.39748816,0.00039797,31]
[312652704,1706136638813,-296.1449015,0.00039797,31]
[312652705,1706136638822,-522.88013565,0.00039797,31]
[312652706,1706136638832,-460.13571449,0.00039797,31]
[312652707,1706136638841,-158.66595213,0.00039798,4]
[312652708,1706136638853,-4117.96425288,0.00039798,4]
[312652709,1706136638862,-154.92253873,0.00039798,4]
[312652710,1706136638871,-1273.73177583,0.00039798,4]
[312652711,1706136638881,-1484.25757853,0.00039798,4]
[312652712,1706136638891,-5592.776115,0.00039798,2]
[312652713,1706136638901,-154.87619189,0.00039799,4]
[312652714,1706136638911,-1000.0,0.00039799,3]
[312652715,1706136638920,-1017.91632499,0.00039799,3]
[312652716,1706136638929,-500.0,0.00039799,31]
[312652717,1706136638938,-620.66988602,0.00039799,31]
[312652718,1706136638948,-500.0,0.00039799,31]
[312652719,1706136638957,-500.0,0.00039799,31]
[312652720,1706136638966,-169.16418008,0.00039799,31]
[312652721,1706136638975,-500.0,0.00039799,31]
[312652722,1706136638984,-500.0,0.00039799,31]
[312652723,1706136638994,-500.0,0.00039799,31]
[312652724,1706136639003,-500.0,0.00039799,31]
[312652725,1706136639013,-500.0,0.00039799,31]
[312652726,1706136639022,-500.0,0.00039799,31]
[312652727,1706136639031,-327.12170968,0.00039799,31]
[312652728,1706136639040,-500.0,0.00039799,31]
[312652729,1706136639049,-500.0,0.00039799,31]
[312652730,1706136639058,-167.29104502,0.00039799,31]
[312652731,1706136639067,-140190.05484047,0.000398,10]
[312652732,1706136639080,-1981.36617259,0.000398,10]
[312652733,1706136639091,-1984.01179553,0.000398,10]
[312652734,1706136639102,-20000.0,0.000398,10]
[312652735,1706136639118,-12094.96389273,0.000398,10]
[312652736,1706136639138,-23456.98337144,0.000398,10]
[312652737,1706136639148,-4040.09199812,0.0003999,4]
[312652738,1706136639157,-1280.40356402,0.0004,4]
[312652739,1706136639167,-225.36499989,0.0004,4]
[312652740,1706136639176,-165.933429,0.00040313,2]
[312652741,1706136639186,-2807.0,0.00041,10]
[312652742,1706136639195,-250.0,0.00041095,7]
[312652743,1706136639204,-105.96549137,0.00041095,2]
[312652750,1706136640999,-1046.46984737,0.00024597,2]
[312652751,1706136641009,-394.03450863,0.00041095,2]
[312652752,1706136641018,-165.933429,0.00041096,2]
[312652753,1706136641027,-156.59077763,0.00041322,30]
[312652754,1706136641036,-152.20431377,0.00041364,30]
[312652755,1706136641045,-152.20431377,0.00041368,30]
[312652756,1706136641054,-50000.0,0.0004158,15]
[312652757,1706136641063,-152.20431377,0.00041661,30]
[312652758,1706136641072,-151.0,0.00041785,21]
[312652759,1706136641081,-500.0,0.000419,7]
[312652760,1706136641090,-152.20431377,0.00041931,30]
[312652761,1706136641100,-151.0,0.00041991,21]
[312652762,1706136641109,-306.24,0.00042,4]
[312652763,1706136641118,-174.6360479,0.00042159,30]
[312652764,1706136641128,-151.0,0.00042197,21]
[312652765,1706136641137,-647.92435267,0.00042296,15]
[312652766,1706136641146,-152.20431377,0.0004238,30]
[312652767,1706136641155,-151.0,0.00042403,21]
[312652768,1706136641165,-500.0,0.00042465,7]
[312652769,1706136641174,-151.0,0.00042609,21]
[312652770,1706136641184,-152.20431377,0.00042671,30]
[312652771,1706136641193,-777.0,0.00042715,2]
[312652772,1706136641203,-152.20431377,0.00042797,30]
[312652773,1706136641212,-151.0,0.00042815,21]
[312652774,1706136641221,-210.54498919,0.000429,7]
[312652775,1706136641412,-289.45501081,0.000429,7]
[312652776,1706136641422,-151.0,0.00043021,21]
[312652777,1706136641431,-152.20431377,0.0004314,30]
[312652778,1706136641440,-335.740082,0.000432,18]
[312652779,1706136641449,-151.0,0.00043227,21]
[312652780,1706136641459,-151.0,0.00043433,21]
[312652781,1706136641468,-155.0,0.000435,2]
[312652782,1706136641478,-3546.60797264,0.00043805,15]
[312652783,1706136641487,-1260.7832722,0.00043805,15]
[312652784,1706136641496,-155.54233736,0.00043808,30]
[312652785,1706136641505,-156.59077763,0.00043815,30]
[312652786,1706136641514,-64.30779697,0.00043835,7]
[312652787,1706136641526,-685.69220303,0.00043835,7]
[312652788,1706136641535,-152.20431377,0.00043938,30]
[312652789,1706136641544,-156.59077763,0.00044393,30]
[312652790,1706136641554,-13652.03010775,0.00044414,5]
[312652791,1706136641565,-25002.68036677,0.00044414,5]
[312652792,1706136641574,-152.20431377,0.00044449,30]
[312652793,1706136641583,-151.0,0.00044484,7]
[312652794,1706136641592,-151.0,0.00044484,7]
[312652795,1706136641601,-151.0,0.0004449,7]
[312652796,1706136641610,-151.0,0.0004449,7]
[312652797,1706136641620,-151.0,0.0004449,7]
[312652798,1706136641629,-151.0,0.0004449,7]
[312652799,1706136641638,-151.0,0.0004449,7]
[312652800,1706136641648,-151.0,0.0004449,7]
[312652801,1706136641657,-151.0,0.0004449,7]
[312652802,1706136641666,-151.0,0.0004449,7]
[312652803,1706136641675,-151.0,0.0004449,7]
[312652804,1706136641684,-500.0,0.00044495,9]
[312652805,1706136641693,-976.81815842,0.000445,5]
[312652806,1706136641702,-166.893556,0.00044514,7]
[312652807,1706136641711,-166.893556,0.00044514,7]
[312652808,1706136641721,-166.893556,0.00044514,7]
[312652809,1706136641730,-166.893556,0.00044514,7]
[312652810,1706136641740,-166.893556,0.00044514,7]
[312652811,1706136641749,-166.893556,0.00044514,7]
[312652812,1706136641759,-166.893556,0.00044514,7]
[312652813,1706136641768,-166.893556,0.00044514,7]
[312652814,1706136641777,-166.893556,0.00044514,7]
[312652815,1706136641786,-166.893556,0.00044514,7]
[312652816,1706136641795,-166.893556,0.00044514,7]
[312652817,1706136641805,-166.893556,0.00044514,7]
[312652818,1706136641818,-151.0,0.00044514,7]
[312652819,1706136641827,-151.0,0.00044514,7]
[312652820,1706136641836,-1695.030929,0.00044514,7]
[312652821,1706136641845,-1695.030929,0.00044514,7]
[312652822,1706136641856,-1695.030929,0.00044514,7]
[312652823,1706136641865,-1695.030929,0.00044514,7]
[312652824,1706136641874,-1695.030929,0.00044514,7]
[312652825,1706136641883,-1695.030929,0.00044514,7]
[312652826,1706136641893,-1695.030929,0.00044514,7]
[312652827,1706136641902,-1695.030929,0.00044514,7]
[312652828,1706136641911,-1695.030929,0.00044514,7]
[312652829,1706136641920,-1695.030929,0.00044514,7]
[312652830,1706136641929,-1695.030929,0.00044514,7]
[312652831,1706136641939,-1695.030929,0.00044514,7]
[312652832,1706136641948,-1695.030929,0.00044514,7]
[312652833,1706136641957,-1695.030929,0.00044514,7]